bitfinex-derivatives/quotes_SOLF0:USTF0_20241203
["timestamp","ask_amount","ask_price","bid_price","bid_amount"]
[1733224263657,2.2261,224.58,224.49,2.28]
[1733224264051,2.2261,224.58,224.5,1.5192]
[1733224264460,14.85637008,224.62,224.5,1.5192]
[1733224264759,2.2261,224.57,224.5,1.5192]
[1733224264952,12.57637008,224.62,224.5,1.5192]
[1733224266455,12.57637008,224.62,224.51,1.5237]
[1733224267450,30.70375489,224.63,224.51,1.5237]
[1733224268762,30.70375489,224.63,224.52,2.28]
[1733224271662,12.57637008,224.65,224.52,2.28]
[1733224271863,12.57637008,224.65,224.53,2.89675354]
[1733224272062,12.57637008,224.65,224.54,1.11413598]
[1733224272263,12.57637008,224.65,224.55,1.11413598]
[1733224272562,12.57637008,224.68,224.56,1.11412365]
[1733224272762,12.57637008,224.68,224.57,2.28]
[1733224273058,12.57637008,224.68,224.58,1.1139113]
[1733224273257,12.57637008,224.68,224.57,2.28]
[1733224273459,12.57637008,224.68,224.58,1.11396242]
[1733224273659,12.57637008,224.68,224.57,2.28]
[1733224273860,12.57637008,224.68,224.58,1.11396242]
[1733224274064,12.57637008,224.68,224.57,2.28]
[1733224276560,2.28,224.75,224.59,12.57637008]
[1733224276755,12.57637008,224.74,224.6,4.1433453]
[1733224276955,12.57637008,224.74,224.6,3.0295]
[1733224278354,2.28,224.77,224.6,3.0295]
[1733224278557,12.57637008,224.75,224.6,3.0295]
[1733224278758,12.57637008,224.75,224.61,1.11365263]
[1733224278965,12.57637008,224.75,224.62,14.85637008]
[1733224280261,14.85637008,224.78,224.62,14.85637008]
[1733224280456,12.57637008,224.78,224.62,14.85637008]
[1733224284061,12.57637008,224.72,224.6,3.0295]
[1733224284264,12.57637008,224.72,224.61,2.28]
[1733224284863,12.57637008,224.72,224.6,3.0295]
[1733224285064,12.57637008,224.72,224.61,2.28]
[1733224285864,2.28,224.74,224.62,12.57637008]
[1733224286167,4.4453,224.77,224.62,12.57637008]
[1733224286168,6.7253,224.77,224.62,12.57637008]
[1733224287360,12.57637008,224.75,224.61,2.28]
[1733224287966,12.57637008,224.75,224.65,2.2253]
[1733224287967,2.2247,224.71,224.65,2.2253]
[1733224288159,12.57637008,224.75,224.61,2.28]
[1733224288565,12.57637008,224.75,224.67,2.2251]
[1733224288566,2.2247,224.72,224.67,2.2251]
[1733224289667,12.57637008,224.75,224.62,12.57637008]
[1733224289868,2.2246,224.73,224.62,12.57637008]
[1733224290366,2.2246,224.73,224.67,2.225]
[1733224291068,2.2246,224.73,224.68,2.225]
[1733224291664,2.2246,224.72,224.67,2.2251]
[1733224292066,12.57637008,224.75,224.66,2.28]
[1733224292667,12.57637008,224.72,224.6,3.0295]
[1733224292870,2.225,224.68,224.63,2.2254]
[1733224293166,14.85637008,224.72,224.61,2.28]
[1733224293369,2.2249,224.69,224.62,2.2256]
[1733224293571,14.85637008,224.72,224.62,2.2256]
[1733224294572,12.57637008,224.66,224.53,12.57637008]
[1733224294875,12.57637008,224.66,224.57,60.15709535]
[1733224295770,2.2256,224.63,224.57,60.15709535]
[1733224296276,2.2254,224.64,224.6,2.2258]
[1733224296479,2.2730016,224.75,224.57,60.15709535]
[1733224296480,12.57637008,224.69,224.57,60.15709535]
[1733224296680,14.85637008,224.72,224.58,1.11389526]
[1733224296875,2.225,224.68,224.63,2.2254]
[1733224297174,12.57637008,224.72,224.62,2.28]
[1733224297577,12.57637008,224.72,224.63,2.2255]
[1733224298280,2.2253,224.65,224.62,2.28]
[1733224298671,2.2252,224.66,224.62,2.28]
[1733224298876,12.57637008,224.69,224.58,2.28]
[1733224299178,2.2254,224.64,224.6,2.2258]
[1733224300072,2.2254,224.64,224.58,2.28]
[1733224300269,12.57637008,224.69,224.58,2.28]
[1733224300470,12.57637008,224.72,224.58,2.28]
[1733224301275,2.2252,224.67,224.62,2.2255]
[1733224301678,12.57637008,224.72,224.62,2.2255]
[1733224302082,2.2252,224.66,224.62,2.2255]
[1733224302276,12.57637008,224.72,224.58,2.28]
[1733224302787,2.2252,224.67,224.58,2.28]
[1733224302986,12.57637008,224.72,224.62,2.2255]
[1733224303280,2.2252,224.67,224.62,2.2255]
[1733224303481,2.2252,224.67,224.58,2.28]
[1733224303678,2.2252,224.67,224.63,2.2254]
[1733224305577,10.26783486,224.67,224.63,2.2254]
[1733224305984,2.20458108,224.87,224.65,8.04263486]
[1733224306183,8.04263486,224.8,224.72,8.04263486]
[1733224306679,2.224,224.79,224.73,2.2245]
[1733224306884,2.224,224.79,224.72,8.04263486]
[1733224307079,8.04263486,224.8,224.72,10.26723486]
[1733224307080,2.224,224.78,224.72,10.26723486]
[1733224307382,8.04263486,224.8,224.7,2.28]
[1733224307584,14.83230528,224.83,224.7,2.28]
[1733224307774,14.83230528,224.83,224.73,2.2244]
[1733224307775,2.2239,224.79,224.73,2.2244]
[1733224307977,2.2239,224.79,224.7,2.28]
[1733224307978,14.83230528,224.83,224.7,2.28]
[1733224308585,2.2239,224.79,224.7,2.28]
[1733224308778,2.28,224.83,224.7,2.28]
[1733224308986,14.83230528,224.83,224.74,2.2244]
[1733224309179,14.83230528,224.83,224.7,2.28]
[1733224309378,2.2239,224.79,224.74,2.2244]
[1733224310789,2.2239,224.79,224.73,2.2245]
[1733224310977,2.2239,224.79,224.7,2.28]
[1733224311287,2.9784,224.85,224.73,2.2245]
[1733224311288,14.83230528,224.84,224.73,2.2245]
[1733224311581,12.55230528,224.84,224.7,2.28]
[1733224312184,2.2238,224.81,224.75,2.2242]
[1733224312379,2.2238,224.81,224.7,2.28]
[1733224312688,2.2238,224.81,224.75,2.2242]
[1733224312986,2.2238,224.81,224.7,2.28]
[1733224313283,2.2238,224.8,224.75,2.2243]
[1733224313488,2.2238,224.8,224.7,2.28]
[1733224313784,2.2237,224.82,224.76,2.2241]
[1733224313984,12.55230528,224.84,224.75,2.28]
[1733224314979,2.2237,224.81,224.77,2.2241]
[1733224315389,12.55230528,224.84,224.77,2.2241]
[1733224315587,2.2236,224.82,224.78,2.224]
[1733224315985,5.2584,224.85,224.75,2.28]
[1733224316189,2.2234,224.84,224.79,2.2239]
[1733224317289,5.2584,224.85,224.8,2.2238]
[1733224317290,2.2233,224.85,224.8,2.2238]
[1733224317489,30.66966248,224.89,224.75,14.83230528]
[1733224318785,2.2232,224.87,224.75,14.83230528]
[1733224319383,2.2233,224.86,224.81,2.2236]
[1733224319789,2.2233,224.86,224.8,2.28]
[1733224320993,2.2233,224.86,224.82,2.2236]
[1733224321193,30.66966248,224.89,224.8,2.28]
[1733224321387,2.28,224.95,224.8,2.28]
[1733224321585,12.55230528,224.94,224.8,2.28]
[1733224322192,2.2228,224.91,224.8,2.28]
[1733224322591,2.2228,224.91,224.86,2.2231]
[1733224322786,2.2228,224.91,224.85,2.28]
[1733224323600,12.55230528,224.94,224.88,2.223]
[1733224323794,2.2226,224.92,224.88,2.223]
[1733224324994,12.55230528,224.96,224.85,2.28]
[1733224325196,15.55440528,224.99,224.85,2.28]
[1733224325494,2.2221,224.98,224.89,2.2229]
[1733224325698,2.2221,224.98,224.84,12.55230528]
[1733224325699,2.2221,224.98,224.9,2.28]
[1733224326501,12.55230528,224.99,224.9,2.28]
[1733224326691,14.77420528,224.99,224.9,2.28]
[1733224327395,2.2221,224.98,224.93,2.2224]
[1733224328704,12.55230528,224.96,224.86,2.28]
[1733224329405,12.55230528,224.96,224.84,2.28]
[1733224329706,8.02578281,224.91,224.84,2.28]
[1733224330308,8.02578281,224.91,224.87,2.2231]
[1733224330810,8.02578281,224.91,224.86,2.2232]
[1733224331109,8.02578281,224.91,224.84,2.28]
[1733224331402,8.02578281,224.91,224.87,2.223]
[1733224331606,2.2227,224.92,224.87,2.223]
[1733224331807,12.53940046,224.95,224.87,2.223]
[1733224332007,12.53940046,224.95,224.82,3.0799]
[1733224332209,2.2228,224.9,224.85,2.2233]
[1733224333012,2.223,224.88,224.84,2.2234]
[1733224333203,12.53940046,224.92,224.81,2.28]
[1733224333509,2.28,224.93,224.81,2.28]
[1733224333806,2.2227,224.91,224.81,2.28]
[1733224334309,2.2227,224.91,224.86,2.2231]
[1733224334609,2.2227,224.91,224.81,2.28]
[1733224334807,2.2227,224.91,224.81,14.81940046]
[1733224337101,2.2227,224.91,224.87,2.223]
[1733224339008,2.2226,224.93,224.89,2.2229]
[1733224339205,2.28,224.97,224.89,2.2229]
[1733224339408,14.05690046,225.0,224.86,2.28]
[1733224339609,2.2221,224.98,224.94,2.2224]
[1733224340511,2.2221,224.98,224.91,2.28]
[1733224341413,2.2221,224.98,224.94,2.2224]
[1733224341610,2.2219,224.99,224.94,2.2224]
[1733224342406,1.5175,225.0,224.95,2.2223]
[1733224342407,2.2218,225.0,224.95,2.2223]
[1733224342813,12.53940046,225.02,224.91,2.28]
[1733224343014,2.2218,225.01,224.96,2.2222]
[1733224343812,2.2219,225.0,224.95,2.2223]
[1733224344020,2.2219,225.0,224.91,2.28]
[1733224344218,12.53940046,225.02,224.91,2.28]
[1733224344614,2.2218,225.01,224.96,2.2222]
[1733224345122,2.2218,225.0,224.96,2.2222]
[1733224345417,12.53940046,225.02,224.96,2.2222]
[1733224347222,2.2218,225.01,224.96,2.2222]
[1733224348720,12.53940046,225.02,224.96,2.2222]
[1733224348721,2.2219,225.0,224.96,2.2222]
[1733224349318,12.53940046,225.02,224.96,2.2222]
[1733224349516,2.2218,225.01,224.96,2.2222]
[1733224350310,12.53940046,224.99,224.85,0.29014292]
[1733224350515,12.53940046,224.96,224.82,3.7704]
[1733224350713,12.53940046,224.96,224.83,1.11254548]
[1733224350919,12.53940046,224.96,224.84,1.11254548]
[1733224351119,12.53940046,224.96,224.85,2.89261826]
[1733224351518,12.53940046,224.96,224.87,2.223]
[1733224351519,2.2225,224.93,224.87,2.223]
[1733224351716,12.53940046,224.96,224.88,1.11254548]
[1733224352015,2.2225,224.94,224.88,2.223]
[1733224352417,2.2225,224.94,224.83,12.53940046]
[1733224352715,12.53940046,224.93,224.84,1.11255051]
[1733224352920,12.53940046,224.93,224.81,5.3425]
[1733224353213,2.2229,224.9,224.85,2.2233]
[1733224353416,12.53940046,224.93,224.82,2.28]
[1733224353621,8.02582442,224.91,224.84,8.02582442]
[1733224354320,10.24852442,224.91,224.86,2.2232]
[1733224354520,8.02582442,224.91,224.82,10.30582442]
[1733224355315,8.02582442,224.91,224.83,2.2235]
[1733224355519,8.02582442,224.89,224.83,2.2235]
[1733224355716,8.02582442,224.89,224.82,10.30582442]
[1733224356316,2.2232,224.87,224.82,10.30582442]
[1733224356923,2.2232,224.87,224.82,12.52942442]
[1733224358426,2.2232,224.87,224.82,10.24942442]
[1733224359923,2.2232,224.87,224.83,2.89329795]
[1733224360124,2.2232,224.87,224.84,1.1128069]
[1733224360325,2.2232,224.87,224.82,10.24942442]
[1733224360621,2.2232,224.87,224.83,1.1128114]
[1733224360822,2.2232,224.87,224.84,1.1128114]
[1733224361125,2.2232,224.87,224.82,10.24942442]
[1733224361326,2.2232,224.87,224.83,1.11282546]
[1733224361523,2.2232,224.87,224.82,10.24942442]
[1733224361722,2.2232,224.87,224.83,1.11282382]
[1733224362025,2.2232,224.87,224.82,10.24942442]
[1733224362227,2.2232,224.87,224.83,1.11280857]
[1733224362429,2.2233,224.86,224.82,8.02582442]
[1733224362619,2.2233,224.86,224.83,1.11280706]
[1733224362928,2.2233,224.86,224.81,2.2237]
[1733224363729,8.02582442,224.87,224.8,10.28582442]
[1733224364128,8.02582442,224.87,224.8,2.26]
[1733224364430,2.2234,224.84,224.8,4.4837]
[1733224364729,8.02582442,224.87,224.8,2.26]
[1733224364925,2.2233,224.86,224.81,2.2236]
[1733224365124,8.02582442,224.87,224.81,2.2236]
[1733224365929,2.28,224.92,224.8,10.28582442]
[1733224366130,8.02582442,224.89,224.8,10.28582442]
[1733224366431,2.2231,224.88,224.82,2.2235]
[1733224366631,8.02582442,224.87,224.82,2.2235]
[1733224367533,10.24902442,224.87,224.82,2.2235]
[1733224367727,10.24902442,224.87,224.83,2.2235]
[1733224368033,8.02582442,224.87,224.83,2.2235]
[1733224368235,10.24892442,224.87,224.83,2.2235]
[1733224368732,10.24892442,224.87,224.81,2.28]
[1733224368933,8.02582442,224.87,224.82,2.2236]
[1733224369232,8.02582442,224.87,224.81,2.28]
[1733224369834,2.2233,224.86,224.81,4.5036]
[1733224370028,2.2233,224.86,224.81,2.28]
[1733224370229,8.02582442,224.87,224.81,2.28]
[1733224370633,2.28,224.92,224.83,8.02582442]
[1733224370933,8.02582442,224.89,224.81,10.30582442]
[1733224371129,10.24882442,224.89,224.85,2.2233]
[1733224371433,8.02582442,224.87,224.79,8.02582442]
[1733224371629,8.02582442,224.87,224.8,2.28]
[1733224371831,2.2233,224.86,224.82,2.2235]
[1733224372133,2.2233,224.86,224.8,2.28]
[1733224372937,2.2233,224.86,224.81,2.2236]
[1733224373138,2.2233,224.86,224.8,2.28]
[1733224374232,2.2233,224.86,224.82,2.2236]
[1733224374736,2.2233,224.86,224.8,2.28]
[1733224374932,8.02582442,224.87,224.8,2.28]
[1733224375236,8.02582442,224.89,224.81,8.02582442]
[1733224375433,2.2232,224.87,224.81,8.02582442]
[1733224375735,8.02582442,224.91,224.83,8.02582442]
[1733224376235,8.02582442,224.91,224.86,2.2231]
[1733224376734,8.02582442,224.91,224.83,8.02582442]
[1733224376932,10.24862442,224.91,224.87,2.2231]
[1733224377234,10.24862442,224.91,224.83,8.02582442]
[1733224377735,10.24862442,224.91,224.85,2.2233]
[1733224377939,10.24862442,224.91,224.83,8.02582442]
[1733224378241,8.02582442,224.91,224.83,8.02582442]
[1733224378535,2.2228,224.9,224.87,2.2231]
[1733224382842,10.24862442,224.91,224.87,2.2231]
[1733224383332,8.02582442,224.91,224.83,8.02582442]
[1733224383834,2.28,224.96,224.81,8.02582442]
[1733224383835,8.02582442,224.89,224.81,8.02582442]
[1733224384237,2.223,224.88,224.84,2.2234]
[1733224384544,8.02582442,224.89,224.81,8.02582442]
[1733224384741,2.28,224.96,224.82,2.2236]
[1733224384742,2.2233,224.86,224.82,2.2236]
[1733224384942,2.2233,224.86,224.81,8.02582442]
[1733224385841,2.2233,224.86,224.8,10.30582442]
[1733224386037,2.2233,224.85,224.8,10.30582442]
[1733224386437,2.28,224.93,224.8,10.30582442]
[1733224386638,8.02582442,224.89,224.8,10.30582442]
[1733224387337,2.28,224.93,224.82,8.02582442]
[1733224387536,8.02582442,224.9,224.82,8.02582442]
[1733224388643,3.7007799,224.97,224.83,2.2235]
[1733224388644,2.2231,224.87,224.83,2.2235]
[1733224388849,2.2231,224.87,224.8,10.30582442]
[1733224389146,2.2231,224.87,224.83,2.2234]
[1733224389546,2.2231,224.87,224.8,10.30582442]
[1733224389745,2.2231,224.87,224.83,2.2235]
[1733224389949,8.02582442,224.84,224.75,2.9543]
[1733224390247,8.02582442,224.81,224.73,8.02582442]
[1733224390447,8.02582442,224.81,224.75,2.2242]
[1733224391051,2.26,224.86,224.75,2.2242]
[1733224391245,8.02582442,224.81,224.75,2.2242]
[1733224391547,8.02582442,224.81,224.74,2.2244]
[1733224391746,2.2239,224.79,224.73,8.02582442]
[1733224392747,8.02582442,224.81,224.73,8.02582442]
[1733224392951,2.224,224.78,224.73,8.02582442]
[1733224393449,2.26,224.86,224.75,2.2243]
[1733224393450,8.02582442,224.79,224.75,2.2243]
[1733224394546,10.24982442,224.79,224.73,8.02582442]
[1733224394750,8.02582442,224.79,224.74,2.2244]
[1733224395445,8.02582442,224.79,224.72,2.26]
[1733224395651,8.02582442,224.77,224.7,2.26]
[1733224395851,8.02582442,224.75,224.67,8.02582442]
[1733224396047,2.2247,224.72,224.67,8.02582442]
[1733224396350,2.2247,224.72,224.68,1.11321393]
[1733224396547,2.2247,224.72,224.67,2.225]
[1733224396751,2.2247,224.72,224.67,10.25082442]
[1733224397246,2.2247,224.72,224.68,1.78130481]
[1733224397552,2.2247,224.72,224.69,1.1133155]
[1733224397851,8.02582442,224.78,224.7,1.1133155]
[1733224398052,8.02582442,224.78,224.71,3.3379155]
[1733224398250,8.02582442,224.78,224.71,2.2246]
[1733224399051,2.2243,224.75,224.71,2.2246]
[1733224399247,2.2243,224.75,224.72,1.11319114]
[1733224399452,2.2243,224.75,224.71,2.2246]
[1733224399752,2.2243,224.75,224.72,1.11319114]
[1733224399947,2.2242,224.76,224.71,2.2246]
[1733224400152,2.2242,224.76,224.72,1.1131871]
[1733224400349,2.2242,224.76,224.71,2.2246]
[1733224400650,2.2242,224.76,224.69,8.02582442]
[1733224400651,8.02582442,224.78,224.74,2.2244]
[1733224401953,10.24982442,224.78,224.74,2.2244]
[1733224403048,8.02582442,224.76,224.66,6.7964]
[1733224403248,8.02582442,224.76,224.67,2.89428764]
[1733224403446,8.02582442,224.76,224.68,1.78110009]
[1733224403649,8.02582442,224.76,224.68,1.11318755]
[1733224403845,8.02582442,224.76,224.69,1.11318755]
[1733224404058,2.2244,224.74,224.7,3.33788755]
[1733224404255,2.2244,224.74,224.7,2.2247]
[1733224406260,2.2244,224.74,224.67,10.28582442]
[1733224406757,2.2244,224.74,224.7,2.2247]
[1733224408753,2.2243,224.76,224.71,2.2247]
[1733224408959,10.25012442,224.76,224.69,8.02582442]
[1733224409158,8.02582442,224.76,224.69,8.02582442]
[1733224409360,2.2244,224.75,224.71,2.2247]
[1733224409858,10.25002442,224.77,224.73,2.2245]
[1733224410059,8.02582442,224.77,224.69,8.02582442]
[1733224410254,8.02582442,224.77,224.7,1.113114]
[1733224410460,2.2242,224.76,224.72,2.2245]
[1733224410657,8.02582442,224.77,224.69,8.02582442]
[1733224410862,8.02582442,224.77,224.7,1.113114]
[1733224411062,2.2243,224.75,224.71,2.2246]
[1733224411263,2.26,224.82,224.69,8.02582442]
[1733224411462,8.02582442,224.77,224.69,8.02582442]
[1733224412066,2.2243,224.75,224.69,8.02582442]
[1733224412563,2.2243,224.75,224.7,1.11311498]
[1733224412761,2.2245,224.73,224.69,8.02582442]
[1733224412964,8.02582442,224.76,224.69,8.02582442]
[1733224413263,2.2244,224.75,224.71,2.2247]
[1733224414156,2.2244,224.74,224.71,2.2247]
[1733224414362,2.2244,224.74,224.69,8.02582442]
[1733224414563,2.2244,224.74,224.7,2.2248]
[1733224415259,2.2244,224.74,224.67,10.28582442]
[1733224415457,2.2244,224.74,224.66,6.7964]
[1733224415657,2.2244,224.74,224.67,9.13909756]
[1733224415863,2.2244,224.74,224.7,2.2247]
[1733224416058,2.2244,224.74,224.69,8.02582442]
[1733224416469,2.2244,224.74,224.71,2.2246]
[1733224416763,4.5094,224.88,224.71,10.28582442]
[1733224416764,8.02582442,224.78,224.71,10.28582442]
[1733224417067,8.02582442,224.78,224.73,2.2245]
[1733224417863,2.2244,224.75,224.71,4.4847]
[1733224418569,8.02582442,224.76,224.72,2.2246]
[1733224418570,10.25002442,224.76,224.72,2.2246]
[1733224418759,8.02582442,224.76,224.72,2.2246]
[1733224418969,8.02582442,224.78,224.71,10.28582442]
[1733224419165,10.24992442,224.78,224.73,2.2244]
[1733224419468,8.02582442,224.78,224.71,2.26]
[1733224420768,10.25012442,224.76,224.72,2.2246]
[1733224421369,10.25012442,224.76,224.67,57.85851571]
[1733224421370,10.25022442,224.74,224.7,2.2247]
[1733224421777,2.2245,224.73,224.67,68.14434013]
[1733224421977,2.2245,224.73,224.69,2.2249]
[1733224422177,8.02582442,224.74,224.69,2.2249]
[1733224422876,8.02582442,224.7,224.67,57.85851571]
[1733224423980,10.25072442,224.7,224.67,57.85851571]
[1733224424976,2.2249,224.7,224.67,57.85851571]
[1733224425279,8.02582442,224.72,224.67,57.85851571]
[1733224425878,2.2248,224.7,224.67,57.85851571]
[1733224427177,10.25062442,224.7,224.67,57.85851571]
[1733224429984,8.02582442,224.75,224.68,2.89455734]
[1733224430180,8.02582442,224.75,224.69,1.11334549]
[1733224430483,8.02582442,224.75,224.7,1.11334549]
[1733224430484,2.2244,224.74,224.7,1.11334549]
[1733224430680,2.2244,224.74,224.67,60.11851571]
[1733224430880,2.2244,224.74,224.69,2.2248]
[1733224431086,2.2244,224.74,224.7,1.11326552]
[1733224431285,2.2245,224.73,224.67,68.14434013]
[1733224431580,2.2245,224.73,224.68,2.89451703]
[1733224431777,2.2245,224.73,224.69,1.11327578]
[1733224431980,10.25012442,224.75,224.71,2.2246]
[1733224432179,8.02582442,224.75,224.72,1.11313472]
[1733224432377,8.02582442,224.75,224.73,1.11313472]
[1733224432584,8.02582442,224.75,224.71,2.2246]
[1733224432780,8.02582442,224.75,224.72,1.11313524]
[1733224432991,8.02582442,224.75,224.73,1.11313524]
[1733224432992,2.2244,224.74,224.73,1.11313524]
[1733224433682,2.2244,224.74,224.71,2.2246]
[1733224433881,2.2244,224.74,224.72,1.11319036]
[1733224434085,2.2244,224.74,224.71,2.2246]
[1733224434282,2.2244,224.74,224.72,1.11319036]
[1733224434576,2.2244,224.74,224.71,2.2246]
[1733224434885,2.2244,224.74,224.72,1.11319146]
[1733224435080,2.2244,224.74,224.67,60.11851571]
[1733224435286,2.2244,224.74,224.7,2.2248]
[1733224435487,2.2244,224.74,224.71,1.11319146]
[1733224435686,2.2244,224.74,224.72,1.11319146]
[1733224435983,2.2244,224.74,224.67,60.11851571]
[1733224436184,2.2244,224.74,224.68,5.12068073]
[1733224436386,2.2244,224.74,224.69,2.8942978]
[1733224436575,2.2244,224.74,224.7,2.8942978]
[1733224436780,2.2244,224.74,224.71,1.11319146]
[1733224436980,2.2244,224.74,224.72,1.11319146]
[1733224437185,2.2244,224.74,224.73,1.11319146]
[1733224438886,2.2244,224.74,224.71,2.2246]
[1733224439186,10.25012442,224.75,224.73,1.11319146]
[1733224439378,2.26,224.8,224.72,1.11319146]
[1733224439583,8.02582442,224.77,224.73,1.11320408]
[1733224439786,1.5083,224.89,224.77,2.2241]
[1733224440181,8.02582442,224.81,224.77,2.2241]
[1733224440785,8.02582442,224.81,224.78,1.11300506]
[1733224440985,8.02582442,224.81,224.75,4.4842]
[1733224441185,8.02582442,224.81,224.76,1.11298114]
[1733224441385,1.5083,224.89,224.75,2.26]
[1733224441584,8.02582442,224.8,224.77,1.11298014]
[1733224441789,8.02582442,224.78,224.69,8.02582442]
[1733224441990,8.02582442,224.76,224.7,3.37304029]
[1733224442182,10.25012442,224.76,224.71,2.2246]
[1733224442379,8.02582442,224.76,224.7,2.26]
[1733224442688,8.02582442,224.76,224.72,2.2246]
[1733224443181,8.02582442,224.76,224.7,2.26]
[1733224443387,10.25012442,224.76,224.71,2.2247]
[1733224443588,10.25012442,224.76,224.7,2.26]
[1733224444088,10.25012442,224.76,224.72,2.2246]
[1733224444783,2.2243,224.75,224.72,2.2246]
[1733224446087,2.2241,224.77,224.7,2.26]
[1733224446483,8.02582442,224.78,224.71,1.11318293]
[1733224446684,8.02582442,224.78,224.73,2.2245]
[1733224447186,2.2242,224.77,224.73,2.2245]
[1733224447386,8.02582442,224.78,224.73,2.2245]
[1733224448186,2.2241,224.77,224.73,2.2245]
[1733224450088,8.02582442,224.78,224.75,2.2243]
[1733224450687,10.24982442,224.78,224.74,2.2244]
[1733224451191,2.2244,224.75,224.68,5.1993]
[1733224451387,2.2244,224.75,224.69,5.1206631]
[1733224451581,2.2244,224.75,224.7,2.89428784]
[1733224451780,2.2244,224.75,224.71,2.89428784]
[1733224451986,2.2244,224.75,224.69,8.02582442]
[1733224452193,2.2244,224.75,224.7,2.89428841]
[1733224452385,2.2244,224.75,224.71,1.78110056]
[1733224452586,2.2242,224.76,224.72,3.33778785]
[1733224452785,2.2242,224.76,224.73,1.11318785]
[1733224452985,2.2242,224.76,224.72,2.2246]
[1733224453187,2.2242,224.76,224.73,1.1131889]
[1733224453490,2.2242,224.76,224.69,8.02582442]
[1733224453681,2.26,224.83,224.71,8.02582442]
[1733224453888,8.02582442,224.81,224.73,8.02582442]
[1733224454090,10.24962442,224.81,224.73,10.28582442]
[1733224454287,10.24962442,224.81,224.74,2.89412021]
[1733224454487,10.24962442,224.81,224.77,2.224]
[1733224455892,2.2238,224.8,224.77,2.224]
[1733224456393,8.02582442,224.81,224.77,2.224]
[1733224456588,10.24952442,224.81,224.75,2.2243]
[1733224456789,10.24952442,224.81,224.73,10.28582442]
[1733224457084,8.02582442,224.81,224.73,10.28582442]
[1733224457389,2.2238,224.8,224.73,10.28582442]
[1733224457990,2.2238,224.8,224.76,2.2241]
[1733224458391,2.2238,224.8,224.77,2.2241]
[1733224460685,2.2239,224.79,224.76,2.2241]
[1733224460884,8.02582442,224.81,224.73,2.26]
[1733224462089,2.2238,224.8,224.77,2.2241]
[1733224462291,8.02582442,224.81,224.73,2.26]
[1733224462585,10.24962442,224.81,224.77,2.2241]
[1733224462790,8.02582442,224.81,224.77,2.2241]
[1733224463195,2.2239,224.8,224.77,2.2241]
[1733224465785,8.02582442,224.79,224.77,2.2241]
[1733224470898,8.02582442,224.8,224.73,2.26]
[1733224471101,8.02582442,224.8,224.74,2.8938382]
[1733224471299,2.2241,224.78,224.75,3.33731469]
[1733224471494,8.02582442,224.78,224.76,1.11301469]
[1733224471793,2.2242,224.77,224.73,4.4845]
[1733224471998,2.2242,224.77,224.74,1.11311772]
[1733224472198,2.2242,224.77,224.73,4.4845]
[1733224472498,8.02582442,224.78,224.73,4.4845]
[1733224472698,2.2242,224.76,224.73,4.4845]
[1733224473100,8.02582442,224.78,224.74,2.2244]
[1733224473904,2.2242,224.77,224.73,4.4845]
[1733224474099,8.02582442,224.78,224.73,2.2245]
[1733224474301,2.2248,224.71,224.66,2.2252]
[1733224474603,8.02582442,224.72,224.67,2.89474832]
[1733224474799,8.02582442,224.74,224.68,1.11336474]
[1733224475004,2.2247,224.72,224.69,1.11336474]
[1733224475207,2.2247,224.72,224.68,2.225]
[1733224475506,2.2247,224.72,224.69,1.11338777]
[1733224475701,2.2248,224.71,224.67,2.2251]
[1733224475898,8.02582442,224.72,224.68,1.11338773]
[1733224476101,8.02582442,224.72,224.65,10.28582442]
[1733224476303,2.2248,224.71,224.66,5.12001356]
[1733224476504,2.2248,224.71,224.67,1.11342829]
[1733224476700,2.2248,224.71,224.68,1.11342829]
[1733224476905,2.2248,224.7,224.67,2.2251]
[1733224477300,2.2248,224.7,224.68,1.11339203]
[1733224477505,2.2248,224.7,224.67,2.2251]
[1733224477706,2.2248,224.7,224.68,1.11339203]
[1733224477902,2.2248,224.7,224.67,2.2251]
[1733224478104,2.2248,224.7,224.68,1.11338753]
[1733224478306,2.2248,224.7,224.67,2.2251]